bitfinex/quotes_ETHUSD_20220120
["timestamp","ask_amount","ask_price","bid_price","bid_amount"]
[1642714959513,18.44,3126.3,3123.8,1.2097]
[1642714959514,18.44,3126.1,3124.2,0.01078424]
[1642714959716,18.44,3126.1,3124.1,0.01135266]
[1642714959717,18.44,3125.9,3124.1,0.01135266]
[1642714959984,0.8363,3126.1,3124.1,0.01135266]
[1642714959985,18.44,3124.2,3124.1,0.01135266]
[1642714960174,0.8357,3124.2,3124.1,0.01135266]
[1642714960374,0.7655,3124.2,3124.1,0.01135266]
[1642714960575,0.7655,3124.2,3123.1,0.0170369]
[1642714960773,2.4011641,3126.2,3123.3,0.01229234]
[1642714960774,3.30172062,3125.4,3123.3,0.01229234]
[1642714960975,4.0,3127.0,3125.1,1.08598408]
[1642714960976,0.381,3126.0,3125.1,1.08598408]
[1642714961174,1.40106332,3125.6,3125.1,1.08598408]
[1642714961380,0.01281194,3126.5,3125.1,1.08598408]
[1642714961381,0.09819424,3125.8,3125.2,0.0051]
[1642714961579,0.09003306,3125.8,3125.2,0.0051]
[1642714961778,18.44,3125.9,3125.2,0.0051]
[1642714962379,1.24560894,3125.8,3125.2,0.0051]
[1642714962678,1.24560894,3125.8,3124.3,3.30172062]
[1642714962679,18.54121455,3125.7,3124.4,0.00964739]
[1642714962879,18.44,3125.7,3124.4,0.00964739]
[1642714963081,18.44,3125.7,3124.2,0.73245253]
[1642714963082,18.44,3125.5,3124.3,0.01021581]
[1642714963709,19.99180212,3124.4,3124.2,0.67634484]
[1642714964511,1.55180212,3124.4,3124.2,0.67634484]
[1642714964714,18.44,3124.8,3124.2,0.67634484]
[1642714965112,0.00227369,3124.7,3124.2,0.67634484]
[1642714965313,0.00227369,3124.7,3123.1,0.01223019]
[1642714965314,0.16540887,3124.0,3123.1,0.01223019]
[1642714965515,0.16540887,3124.0,3121.7,0.1304]
[1642714965516,18.59998,3123.9,3122.9,4.3398]
[1642714965719,1.2705578,3123.7,3123.2,0.00625266]
[1642714965917,0.09898548,3123.5,3123.2,0.00625266]
[1642714966114,4.91005,3123.3,3123.2,0.00625266]
[1642714966315,18.44,3123.2,3122.3,0.01136847]
[1642714966515,0.1034696,3123.1,3122.3,0.01136847]
[1642714966714,0.16005,3123.0,3121.6,0.01534744]
[1642714966915,18.821,3122.9,3121.6,0.01534744]
[1642714967119,1.38407708,3121.7,3121.6,0.01534744]
[1642714967316,20.61037708,3121.7,3121.6,0.01534744]
[1642714967568,20.61037708,3121.7,3120.3,0.01288048]
[1642714967569,18.44,3121.5,3120.3,0.01288048]
[1642714967761,0.16005,3121.4,3120.3,0.01288048]
[1642714967960,0.16005,3121.4,3119.4,0.10668]
[1642714967961,18.44,3121.3,3120.4,5.03486208]
[1642714968160,18.44,3121.3,3120.4,5.23515508]
[1642714968364,18.44,3121.3,3120.5,8.31645266]
[1642714968562,1.50208972,3121.2,3120.5,8.31645266]
[1642714968766,1.50208972,3121.2,3119.2,0.00349947]
[1642714968767,6.8569557,3121.1,3119.2,0.00349947]
[1642714968963,0.146647,3120.9,3119.2,0.00349947]
[1642714969162,0.54105,3120.8,3119.3,36.58912051]
[1642714969365,0.38213685,3120.8,3119.3,14.75288051]
[1642714969564,0.11354879,3120.7,3120.1,1.51847001]
[1642714969764,0.38213685,3120.8,3119.7,0.8133367]
[1642714969765,0.00113685,3120.8,3119.7,0.8133367]
[1642714969962,0.00113685,3120.8,3120.2,0.0022737]
[1642714970162,0.00113685,3120.8,3119.8,6.21808479]
[1642714970362,0.00113685,3120.8,3120.1,0.0129991]
[1642714970561,0.16005,3122.5,3120.2,6.25668]
[1642714970862,0.16005,3122.5,3121.5,1.38280929]
[1642714970863,1.38505203,3122.0,3121.5,1.38280929]
[1642714971075,0.00682108,3122.0,3121.5,1.38280929]
[1642714971535,0.00682108,3122.0,3121.6,4.5634]
[1642714971734,0.00682108,3122.0,3121.6,4.57590709]
[1642714971935,0.00682108,3122.0,3120.5,3.2793484]
[1642714971936,0.00682108,3122.0,3120.4,3.2793484]
[1642714972134,0.00682108,3122.0,3120.3,0.00284212]
[1642714972135,1.16085749,3120.7,3120.3,0.00284212]
[1642714972336,1.16085749,3120.7,3119.6,4.9609]
[1642714972337,18.56648919,3120.6,3120.5,0.00170528]
[1642714972538,18.60005,3120.6,3120.1,0.00397897]
[1642714972733,18.60005,3120.6,3117.8,2.6505867]
[1642714972734,18.44,3120.4,3117.8,9.2533]
[1642714972934,0.80182,3120.1,3119.3,0.00462636]
[1642714973134,20.32388948,3120.0,3119.3,0.00462636]
[1642714973538,39.69619133,3119.9,3119.3,0.00462636]
[1642714973740,0.17688747,3119.8,3119.3,0.00462636]
[1642714973937,0.17688747,3119.8,3119.3,2.636e-05]
[1642714973938,19.2419379,3119.6,3119.3,2.636e-05]
[1642714974144,19.2419379,3119.6,3116.8,0.01227496]
[1642714974145,18.44,3119.3,3116.8,0.01227496]
[1642714974338,18.44,3119.3,3116.3,9.3866]
[1642714974339,0.01219699,3119.0,3116.3,9.3866]
[1642714974542,0.01219699,3119.0,3117.4,0.01072107]
[1642714974543,0.54105,3118.9,3117.4,0.01072107]
[1642714974737,18.44,3118.8,3117.4,0.01072107]
[1642714974971,18.44,3118.8,3117.5,68.708292]
[1642714974972,0.48935775,3118.7,3117.5,68.708292]
[1642714975159,18.44,3118.8,3117.5,69.088652]
[1642714975160,20.0443311,3118.8,3117.5,69.088652]
[1642714975360,1.15519955,3117.9,3117.6,79.03625423]
[1642714975664,1.15519955,3117.9,3117.7,100.0090158]
[1642714975861,1.15519955,3117.9,3117.3,1.5749712]
[1642714976064,1.15519955,3117.9,3114.9,4.80159888]
[1642714976065,0.13928798,3117.6,3115.1,0.00154043]
[1642714976271,0.381,3117.5,3117.4,0.00170527]
[1642714976464,1.31124667,3115.5,3115.1,0.00154043]
[1642714976664,0.2184,3116.6,3115.3,0.0119369]
[1642714976665,0.688,3116.2,3115.3,0.0119369]
[1642714976865,0.16038,3116.5,3115.3,0.0119369]
[1642714977266,0.16038,3116.5,3115.1,0.00154043]
[1642714977267,0.381,3117.4,3115.5,0.01242292]
[1642714977467,4.03542245,3117.7,3115.5,0.01242292]
[1642714977468,0.00625266,3116.4,3115.5,0.01242292]
[1642714977769,4.0,3117.7,3116.9,1.32202969]
[1642714977967,4.0,3117.7,3117.4,1.14383533]
[1642714978166,0.16038,3117.9,3117.4,1.14383533]
[1642714978167,0.01307374,3117.6,3117.4,1.14383533]
[1642714978368,0.01307374,3117.6,3116.2,0.01261957]
[1642714978568,0.01250532,3117.5,3116.2,0.01261957]
[1642714978819,0.17288532,3117.5,3116.2,0.01261957]
[1642714979015,0.17288532,3117.5,3115.1,0.01283545]
[1642714979016,1.0105169,3117.5,3115.1,0.01283545]
[1642714979216,3.78032901,3117.4,3115.1,0.01283545]
[1642714979415,0.1223169,3117.3,3116.3,0.00625266]
[1642714979617,0.50745659,3117.2,3116.3,0.00625266]
[1642714979816,0.50745659,3117.2,3116.1,0.00738951]
[1642714980022,0.381,3117.2,3115.2,0.01250532]
[1642714980216,1.48318645,3117.5,3115.5,0.01080005]
[1642714980217,2.276404,3117.1,3115.5,0.01080005]
[1642714980420,2.276404,3117.1,3115.2,0.15707]
[1642714980421,2.276404,3117.1,3115.6,0.15707]
[1642714980617,4.0,3117.9,3115.9,0.01284564]
[1642714980820,4.0,3117.9,3115.6,1.49853398]
[1642714980821,0.1223169,3118.6,3115.6,1.49853398]
[1642714980822,0.12,3119.2,3117.1,0.0120096]
[1642714981020,3.5,3119.5,3117.2,0.27639994]
[1642714981221,0.03935365,3120.0,3117.2,0.27639994]
[1642714981222,0.1223169,3119.4,3117.8,0.01255858]
[1642714981420,0.1223169,3119.4,3118.0,1.2992731]
[1642714981421,1.52189844,3118.9,3118.0,1.2992731]
[1642714981618,1.52189844,3118.9,3117.8,0.01255858]
[1642714981819,0.00795793,3118.8,3117.8,0.01255858]
[1642714982017,0.1223169,3118.7,3117.8,0.01255858]
[1642714982316,0.00682108,3118.6,3117.8,0.01255858]
[1642714982583,0.10826858,3118.5,3117.8,0.01255858]
[1642714982782,0.10826858,3118.5,3117.2,0.00113685]
[1642714982783,0.01292248,3118.1,3117.2,0.00113685]
[1642714983081,0.14162848,3117.9,3117.2,0.00113685]
[1642714983280,0.12572744,3118.0,3117.2,0.00113685]
[1642714983281,0.01221357,3117.4,3117.2,0.00113685]
[1642714983488,6.15,3117.2,3114.8,0.16472234]
[1642714983689,3.7826653,3117.1,3114.8,0.16472234]
[1642714983888,3.7826653,3117.1,3114.7,5.21227256]
[1642714983889,21.83419078,3117.0,3115.9,0.0073895]
[1642714984091,2.1087969,3116.9,3115.9,0.0073895]
[1642714984289,0.80273,3116.7,3114.9,1.12569297]
[1642714984489,0.01248495,3116.5,3114.9,1.12569297]
[1642714984691,0.01248495,3116.5,3114.7,3.9333]
[1642714984692,0.381,3116.4,3115.4,1.38207511]
[1642714984990,1.25577362,3115.9,3115.5,21.2769132]
[1642714985189,1.25577362,3115.9,3115.5,0.0096632]
[1642714985392,1.25577362,3115.9,3115.6,25.91591377]
[1642714985393,0.1223169,3115.8,3115.6,25.91591377]
[1642714985690,0.1223169,3115.8,3115.7,24.60296235]
[1642714985691,3.6723169,3115.8,3115.7,24.60296235]
[1642714985889,3.6723169,3115.8,3115.7,0.00852635]
[1642714986092,3.6723169,3115.8,3115.7,0.01477901]
[1642714986310,4.0533169,3115.8,3114.6,0.01477901]
[1642714986513,4.8172169,3115.8,3114.6,0.01477901]
[1642714986713,1.06270169,3115.7,3114.6,0.01477901]
[1642714986909,0.381,3115.6,3114.6,0.01477901]
[1642714987108,1.3358781,3115.1,3114.6,1.16916195]
[1642714987309,0.381,3115.6,3114.6,1.16916195]
[1642714987511,0.381,3115.6,3114.7,0.01421059]
[1642714987713,3.0,3116.1,3115.1,1.22117434]
[1642714987915,3.0,3116.1,3115.3,0.01299095]
[1642714988114,0.1223169,3116.8,3115.3,0.01299095]
[1642714988314,1.44502956,3116.7,3115.4,0.01023162]
[1642714988515,0.09855651,3116.6,3115.4,0.01023162]
[1642714988714,0.1223169,3116.5,3115.4,0.01023162]
[1642714988914,0.1223169,3116.5,3114.4,3.11173054]
[1642714988915,0.01257345,3116.3,3114.9,0.01307374]
[1642714989114,0.11364307,3116.2,3115.5,1.09764688]
[1642714989320,1.44502956,3116.7,3114.6,0.02751193]
[1642714989513,1.44502956,3116.7,3115.6,0.00909477]
[1642714989713,1.44502956,3116.7,3114.6,0.01273292]
[1642714989714,0.10156351,3116.5,3114.7,0.01421059]
[1642714989954,0.10156351,3116.5,3114.8,0.15707]
[1642714990158,1.44502956,3116.7,3114.7,0.01421059]
[1642714990159,0.1223169,3116.4,3114.7,0.01421059]
[1642714990456,0.12511465,3115.7,3114.6,0.01477901]
[1642714990655,0.04519819,3116.6,3114.6,0.17184901]
[1642714990656,0.01297203,3116.6,3114.6,0.17184901]
[1642714990856,0.01297203,3116.6,3114.6,3.51181879]
[1642714991055,0.01297203,3116.6,3114.7,0.01421059]
[1642714991657,1.52518701,3116.1,3114.7,0.01421059]
[1642714991860,0.09425594,3116.0,3114.6,0.01477901]
[1642714992056,1.52518701,3116.1,3114.6,0.01477901]
[1642714992256,0.1223169,3116.5,3114.6,0.01477901]
[1642714992257,0.1223169,3116.5,3114.6,0.17184901]
[1642714992459,0.1223169,3116.5,3115.4,1.14220784]
[1642714992858,0.1223169,3116.5,3115.5,0.0096632]
[1642714993062,0.1223169,3117.1,3115.9,1.09650935]
[1642714993260,0.1223169,3117.1,3115.6,1.27597644]
[1642714993261,1.3765398,3116.5,3115.6,1.27597644]
[1642714993460,0.1223169,3117.1,3116.0,0.00682108]
[1642714993735,0.1223169,3117.1,3115.6,1.27597644]
[1642714993736,0.1223169,3117.1,3115.7,0.00852635]
[1642714993929,0.1223169,3117.1,3116.1,0.00625266]
[1642714994136,0.1223169,3117.1,3115.8,0.00795793]
[1642714994429,0.1223169,3117.1,3116.3,1.20265174]
[1642714994628,0.1223169,3117.1,3116.1,1.45572777]
[1642714994826,0.1223169,3117.1,3116.4,0.00454739]
[1642714995028,0.10258817,3117.0,3116.2,0.00568423]
[1642714995230,0.1223169,3116.9,3115.8,0.00795793]
[1642714995428,0.11711446,3116.8,3115.8,0.00795793]
[1642714995627,0.1223169,3116.9,3115.8,0.00795793]
[1642714995628,0.01234704,3116.5,3115.8,0.00795793]
[1642714995827,0.1223169,3116.4,3115.8,0.00795793]
[1642714996229,0.15526584,3116.3,3115.8,0.00795793]
[1642714996430,6.15,3116.2,3115.7,5.793e-05]
[1642714996630,1.54880898,3114.7,3113.8,3.95888996]
[1642714996829,1.54880898,3114.7,3113.6,1.2193]
[1642714996830,0.10700772,3114.6,3113.6,1.2193]
[1642714997035,0.10700772,3114.6,3114.4,0.00795793]
[1642714997330,0.10700772,3114.6,3112.8,4.5095]
[1642714997331,0.17688747,3114.4,3112.8,4.5095]
[1642714997578,0.1223169,3114.3,3113.7,0.00397896]
[1642714997775,0.50498533,3114.2,3113.7,0.00397896]
[1642714997972,0.50498533,3114.2,3112.7,3.8701]
[1642714997973,9.26173054,3114.1,3112.7,3.8701]
[1642714998174,9.26173054,3114.1,3113.4,0.00170527]
[1642714998175,0.11863641,3113.9,3113.4,0.00170527]
[1642714998371,0.11863641,3113.9,3112.5,0.01461641]
[1642714998372,6.15,3113.7,3112.6,0.36041821]
[1642714998575,0.0129887,3113.0,3112.6,0.36041821]
[1642714998778,4.63388105,3112.8,3112.7,0.00397897]
[1642714998974,2.0,3112.6,3112.5,0.01461641]
[1642714999178,2.45,3112.5,3112.2,1.0]
[1642714999375,0.1223169,3112.3,3112.2,1.0]
[1642714999580,0.1223169,3112.9,3112.2,2.39535574]
[1642714999779,0.12345375,3113.6,3113.2,1.4912863]
[1642714999983,0.83900556,3113.8,3113.2,1.4912863]
[1642715000182,0.12,3114.7,3113.7,1.44048012]
[1642715000183,2.9,3114.2,3113.7,1.44048012]
[1642715000480,8.424e-05,3113.7,3113.5,1.47568795]
[1642715000684,2.9,3114.2,3113.6,6.16257118]
[1642715000685,0.00235793,3114.1,3113.6,6.16257118]
[1642715000885,5.793e-05,3114.1,3113.6,6.16257118]
[1642715001085,8.951e-05,3114.0,3113.7,0.00221576]
[1642715001517,0.00461059,3115.2,3113.9,0.15707]
[1642715001707,0.00461059,3115.2,3114.3,0.01213415]
[1642715001907,3.0,3115.9,3114.3,0.01213415]
[1642715001908,4.217e-05,3115.1,3114.3,0.01213415]
[1642715002118,4.217e-05,3115.1,3114.4,0.0039368]
[1642715002306,0.00402113,3115.8,3114.5,0.15707]
[1642715002506,0.00402113,3115.8,3114.8,0.80233]
[1642715002707,4.0,3117.0,3114.8,0.80233]
[1642715002708,4.0,3117.0,3115.7,1.37893246]
[1642715003008,0.01027379,3116.9,3116.8,1.18128]
[1642715003610,0.13259069,3116.9,3115.8,0.13819997]
[1642715003812,0.1026936,3116.8,3115.8,0.13819997]
[1642715004012,0.00970537,3116.8,3115.8,0.13819997]
[1642715004214,0.00913694,3116.7,3115.8,0.13819997]
[1642715004619,0.00856852,3116.6,3115.8,0.13819997]
[1642715004816,1.50199116,3116.4,3115.0,0.13819997]
[1642715005070,0.16298983,3115.9,3115.0,0.13819997]
[1642715005269,0.1223169,3115.8,3114.9,0.00109468]
[1642715005470,0.11216461,3115.7,3114.9,0.00109468]
[1642715005672,0.11216461,3115.7,3114.8,0.0016631]
[1642715005673,0.01244912,3115.5,3114.8,0.0016631]
[1642715005874,1.51392297,3115.2,3114.6,0.00279995]
[1642715006074,0.10028613,3115.1,3114.6,0.00279995]
[1642715006476,0.1223169,3115.0,3114.6,0.00279995]
[1642715006675,0.1223169,3115.0,3113.8,4.7103]
[1642715006676,40.99720005,3114.6,3113.8,4.7103]
[1642715006884,40.99720005,3114.6,3112.2,1.0]
[1642715006885,0.17688747,3114.5,3114.0,0.00341054]
[1642715007075,1.18994065,3114.5,3114.0,0.00341054]
[1642715007276,1.18994065,3114.5,3112.5,8.0008]
[1642715007277,0.11263679,3113.9,3112.5,8.0008]
[1642715007479,4.95047129,3113.9,3112.6,0.00795793]
[1642715007779,4.95047129,3113.9,3110.8,0.2973892]
[1642715007780,6.15,3113.7,3110.8,0.2973892]
[1642715007981,6.15,3113.7,3111.1,1.5135366]
[1642715007982,0.01267837,3112.4,3111.1,1.5135366]
[1642715008179,0.01205075,3112.2,3111.2,3.09641828]
[1642715008379,0.01205075,3112.2,3111.3,1.37735304]
[1642715008578,0.381,3113.3,3112.5,1.42016685]
[1642715008825,0.381,3113.3,3113.0,1.40376196]
[1642715008826,0.80349,3113.1,3113.0,1.40376196]
[1642715009027,0.16058,3113.4,3111.4,0.00682108]
[1642715009028,0.00341054,3113.2,3111.4,0.00682108]
[1642715009224,0.96394,3113.4,3113.1,1.18255011]
[1642715009225,0.80336,3113.4,3113.1,1.18255011]
[1642715009426,4.0,3113.6,3113.1,1.18255011]
[1642715009628,0.00397897,3113.3,3113.1,1.18255011]
[1642715009827,3.03520365,3114.1,3113.3,5.0]
[1642715009828,3.0,3114.1,3113.3,5.0]
[1642715010027,0.1606,3114.5,3113.3,5.0]
[1642715010230,3.684e-05,3113.5,3113.3,5.0]
[1642715010428,4.0,3113.8,3113.4,6.15]
[1642715010429,2.71376132,3113.8,3113.4,6.15]
[1642715010626,3.0,3115.8,3113.5,6.15]
[1642715010627,0.1606,3115.3,3113.5,6.15]
[1642715010827,0.00113685,3113.7,3113.6,3.09641828]
[1642715011027,0.80275,3115.8,3113.6,7.31539425]
[1642715011228,4.0,3115.3,3113.7,3.09641828]
[1642715011429,0.00852635,3115.2,3115.1,1.47902381]
[1642715012459,0.00852635,3115.2,3115.1,7.62902381]
[1642715013559,0.00852635,3115.2,3115.1,7.66729381]
[1642715013960,0.00852635,3115.2,3115.1,10.86122705]
[1642715014160,2.635e-05,3115.2,3115.1,9.2994439]
[1642715014360,2.635e-05,3115.2,3115.1,9.66328954]
[1642715014561,2.635e-05,3115.2,3114.6,4.6752]
[1642715014966,2.635e-05,3115.2,3114.7,0.00281577]
[1642715015765,0.09617524,3115.1,3114.7,0.00281577]
[1642715016236,2.635e-05,3115.2,3114.7,0.00281577]
[1642715016437,2.635e-05,3115.2,3114.8,1.50443733]
[1642715016836,2.635e-05,3115.2,3114.9,0.00167892]
[1642715017437,3.14798172,3116.0,3114.9,0.00167892]
[1642715017438,0.80052603,3115.7,3114.9,0.00167892]
[1642715017645,0.80052603,3115.7,3113.5,0.0127933]
[1642715017646,1.7967327,3115.7,3114.7,0.00281577]
[1642715017843,0.80276,3115.5,3114.7,0.00284212]
[1642715018043,0.11133106,3115.4,3113.6,0.00909477]
[1642715018244,0.11133106,3115.4,3113.9,0.0073895]
[1642715018245,0.80292,3115.3,3113.9,0.0073895]
[1642715018444,0.25453858,3115.4,3114.2,1.36226017]
[1642715018445,0.20058117,3115.4,3114.2,1.36226017]
[1642715018645,0.80283,3115.3,3114.7,1.51935567]
[1642715018844,0.16173685,3115.4,3114.7,1.51935567]
[1642715018845,0.00113685,3115.4,3114.7,1.51935567]
[1642715019044,0.00113685,3115.4,3115.2,1.17544944]
[1642715019246,0.00113685,3115.4,3114.8,0.00227369]
[1642715019247,4.00113685,3115.4,3114.8,0.00227369]
[1642715019646,4.00113685,3115.4,3113.9,0.0073895]
[1642715019846,4.00113685,3115.4,3114.3,0.01216284]
[1642715020072,4.80052603,3115.7,3114.5,6.15]
[1642715020269,4.80052603,3115.7,3115.1,1.53114646]
[1642715020465,0.00113685,3115.6,3115.1,1.53114646]
[1642715020665,2.70236288,3115.7,3115.6,1.54115627]
[1642715020871,0.27639994,3116.3,3115.3,1.54755212]
[1642715021067,0.01256743,3116.2,3115.3,1.54755212]
[1642715021265,0.01597797,3116.2,3115.8,1.53453959]
[1642715021466,0.00341054,3116.2,3115.8,1.53453959]
[1642715021664,0.00341054,3116.2,3115.4,0.00113685]
[1642715021865,0.15007835,3116.1,3115.4,0.00113685]
[1642715022071,0.16401054,3116.2,3114.8,0.00454739]
[1642715022365,0.16401054,3116.2,3114.5,0.00625266]
[1642715022366,0.10169361,3115.9,3114.5,0.00625266]
[1642715022572,0.00284211,3116.1,3114.5,0.00625266]
[1642715022768,0.1606,3116.2,3114.6,1.47545351]
[1642715022769,0.00113684,3115.8,3114.6,1.47545351]
[1642715023065,0.09033955,3116.0,3114.7,0.00511582]
[1642715023066,4.0,3115.4,3114.7,0.00511582]
[1642715024211,4.0,3115.3,3114.7,0.00511582]
[1642715024814,4.0,3115.3,3115.1,1.32989282]
[1642715025112,0.00113684,3115.8,3115.2,0.0022737]
[1642715025113,4.0,3115.6,3115.2,0.0022737]
[1642715025317,5.53796191,3115.6,3115.2,0.0022737]
[1642715025712,4.0,3115.6,3115.2,0.0022737]
[1642715026115,0.00113684,3115.8,3115.2,0.0022737]
[1642715026717,3.20113684,3115.8,3115.2,0.0022737]
[1642715026915,3.20113684,3115.8,3115.6,25.0]
[1642715027116,7.20113684,3115.8,3115.6,25.0]
[1642715027574,7.20113684,3115.8,3115.7,7.69201993]
[1642715027774,3.51372448,3115.8,3115.7,7.69201993]
[1642715027980,3.51372448,3115.8,3115.7,1.54201993]
[1642715028177,4.0,3116.7,3115.7,2.91057745]
[1642715028980,4.0,3116.7,3115.7,3.31161035]
[1642715029182,0.00738951,3117.1,3115.8,1.03827]
[1642715029382,0.00738951,3117.1,3116.2,0.01279808]
[1642715029580,1.39853881,3117.5,3116.2,0.01279808]
[1642715029581,0.00682108,3117.0,3116.2,0.01279808]
[1642715029879,0.00625266,3116.9,3116.2,0.01279808]
[1642715030081,0.00625266,3116.9,3116.3,1.43464496]
[1642715030082,5.266e-05,3116.9,3116.3,1.43464496]
[1642715030284,8.424e-05,3116.8,3116.4,2.98235176]
[1642715030488,4.0,3118.3,3116.5,0.03827]
[1642715030686,4.47852376,3118.3,3117.0,0.01233529]
[1642715030883,4.47852376,3118.3,3117.4,1.42403457]
[1642715030884,0.00175793,3118.2,3117.4,1.42403457]
[1642715031310,1.7076288,3118.3,3117.5,0.00222104]
[1642715031311,0.0011895,3118.1,3117.5,0.00222104]
[1642715031611,0.0011895,3118.1,3117.0,0.01233529]
[1642715031612,0.0011895,3118.1,3117.6,1.2758318]
[1642715031814,0.0011895,3118.1,3117.3,0.00335789]
[1642715031815,1.326e-05,3118.3,3117.7,5.55]
[1642715032014,5.675973,3119.5,3117.7,5.55227369]
[1642715032216,5.675973,3119.5,3117.8,0.00170527]
[1642715032217,1.3884939,3118.1,3117.8,0.00170527]
[1642715032416,0.80177,3119.1,3117.8,0.00170527]
[1642715032417,0.96237,3119.1,3117.8,0.00170527]
[1642715032615,0.09785126,3119.0,3117.3,2.98689915]
[1642715032816,0.00511581,3119.0,3117.3,0.00454739]
[1642715033018,0.00511581,3119.0,3117.4,0.00397896]
[1642715033019,0.00454739,3118.9,3117.4,0.00397896]
[1642715033217,0.10243613,3118.8,3117.1,0.00568423]
[1642715033416,0.10243613,3118.8,3117.1,0.80743423]
[1642715033417,0.00397897,3118.8,3117.1,0.80743423]
[1642715033615,1.813489,3119.0,3117.2,2.98235176]
[1642715033616,0.00341054,3118.7,3117.2,2.98235176]
[1642715033816,0.00341054,3118.7,3117.3,0.03827]
[1642715034018,1.813489,3119.0,3117.3,0.03827]
[1642715034019,0.00284212,3118.6,3117.3,1.34281739]
[1642715034224,0.00284212,3118.6,3117.7,0.01256438]
[1642715034520,0.0022737,3118.5,3117.8,1.20213719]
[1642715034721,0.0022737,3118.5,3118.3,1.49210609]
[1642715034959,0.00170527,3118.4,3118.3,1.49210609]
[1642715035159,0.00170527,3118.4,3118.3,7.64210609]
[1642715035365,0.1606,3120.1,3120.0,17.22454519]
[1642715035568,0.1606,3120.1,3120.0,4.16978062]
[1642715035569,3.94603648,3120.1,3120.0,4.16978062]
[1642715035759,1.23543648,3120.1,3120.0,4.16978062]
[1642715035963,1.23543648,3120.1,3118.3,1.49210609]
[1642715035964,0.14362408,3119.1,3118.3,1.49210609]
[1642715036164,0.18141071,3119.2,3118.1,0.03827]
[1642715036364,0.18141071,3119.2,3117.6,3.84867]
[1642715036564,0.18141071,3119.2,3118.2,0.00113685]
[1642715036565,0.09009049,3119.1,3118.2,0.00113685]
[1642715036763,0.18141071,3119.2,3117.7,0.00397896]
[1642715036966,1.29953638,3118.2,3117.3,1.54432017]
[1642715037177,0.00397897,3119.1,3117.6,1.44223803]
[1642715037374,0.00397897,3119.1,3116.8,3.8063]
[1642715037375,0.00397897,3119.1,3117.4,0.00568423]
[1642715037378,0.1606,3118.7,3117.4,0.00568423]
[1642715037564,0.53115965,3118.6,3117.7,0.00397896]
[1642715037766,0.53115965,3118.6,3116.8,3.8063]
[1642715037767,0.38213685,3118.6,3117.0,0.13819997]
[1642715037966,0.03254756,3119.2,3117.1,6.15]
[1642715038170,0.03254756,3119.2,3118.3,1.4423248]
[1642715038366,0.00227369,3119.0,3118.3,1.4423248]
[1642715038568,0.00227369,3119.0,3118.4,0.00113685]
[1642715038840,0.46976132,3120.1,3118.5,6.16298764]
[1642715039038,0.1606,3120.3,3118.6,3.09588178]
[1642715039238,0.1606,3120.3,3118.6,3.09815547]
[1642715039239,0.00511581,3119.9,3118.6,3.09815547]
[1642715039439,0.00511581,3119.9,3119.1,1.15687055]
[1642715039440,0.09098253,3119.8,3119.1,1.15687055]
[1642715039640,0.00454739,3119.8,3119.1,1.15687055]
[1642715039947,7.897e-05,3119.7,3119.2,0.03827]
[1642715040154,1.81282371,3120.0,3119.3,6.15]
[1642715040343,4.0,3121.0,3120.3,1.36543685]
[1642715040844,4.0,3121.0,3119.9,0.01245123]
[1642715041041,1.41604171,3119.9,3119.7,0.13819997]
[1642715041241,0.1606,3120.9,3119.7,0.13819997]
[1642715041541,0.0073895,3121.0,3119.7,0.13819997]
[1642715041942,0.12421657,3120.7,3119.7,0.13819997]
[1642715042146,0.12421657,3120.7,3118.9,3.8905]
[1642715042340,0.19620712,3120.8,3118.9,3.8905]
[1642715042341,0.00511581,3120.6,3118.9,3.8905]
[1642715042569,0.00511581,3120.6,3119.5,0.00113685]
[1642715042770,0.09960239,3120.4,3119.5,0.00113685]
[1642715042969,0.10472977,3119.7,3119.5,0.00113685]
[1642715043570,0.80544896,3120.4,3119.5,0.01321032]
[1642715043770,0.00397896,3120.4,3119.5,0.01321032]
[1642715043969,0.00341054,3120.3,3119.5,0.00113685]
[1642715044173,0.381,3120.2,3119.5,0.00113685]
[1642715044368,0.381,3120.2,3118.8,0.13819997]
[1642715044369,41.0,3119.5,3118.9,0.00454739]
[1642715044570,0.25866437,3120.1,3118.9,0.00454739]
[1642715044571,0.17688747,3119.3,3118.9,0.00454739]
[1642715044771,0.80166,3119.4,3118.9,0.00454739]
[1642715044970,1.26243281,3119.1,3118.6,1.24570619]
[1642715045271,1.26243281,3119.1,3118.7,0.00568424]
[1642715045671,1.26243281,3119.1,3118.0,0.0096632]
[1642715046313,0.80156,3119.9,3118.5,1.18823302]
[1642715046512,4.00170527,3120.0,3118.6,3.53683952]
[1642715046712,4.00170527,3120.0,3118.6,0.01905121]
[1642715046912,0.00113684,3119.9,3118.7,0.00568424]
[1642715047111,0.00113684,3119.9,3119.2,1.39848081]
[1642715047313,0.00113684,3119.9,3119.7,1.13871125]
[1642715047514,0.00113684,3119.9,3119.3,0.0022737]
[1642715047911,0.00113684,3119.9,3118.7,0.00568424]
[1642715048514,0.00113684,3119.9,3119.1,1.51521313]
[1642715048716,0.00113684,3119.9,3119.2,1.16153357]
[1642715048915,0.00113684,3119.9,3119.2,1.16437569]
[1642715049115,0.00113684,3119.9,3119.3,0.0022737]
[1642715049526,0.00113684,3119.9,3118.7,0.00568424]
[1642715049720,0.00113684,3119.9,3119.3,0.01246828]
[1642715050167,0.00113684,3119.9,3119.4,1.58888782]
[1642715050566,0.00113684,3119.9,3119.6,1.25663842]
[1642715050768,0.00113684,3119.9,3119.5,0.00113685]
[1642715051767,0.00113684,3119.9,3119.6,1.26680658]
[1642715051969,3.684e-05,3119.9,3119.5,0.00113685]
[1642715052272,3.684e-05,3119.9,3119.5,0.00223685]
[1642715052469,3.684e-05,3119.9,3119.6,0.83937]
[1642715052674,0.80102,3121.9,3119.8,6.18827]
[1642715052873,0.1606,3122.1,3119.9,9.24852376]
[1642715053074,0.0096632,3121.6,3121.3,1.31498174]
[1642715053274,0.0096632,3121.6,3121.3,0.77847474]
[1642715053473,0.47707273,3122.5,3121.1,0.13819997]
[1642715053474,0.00909478,3121.5,3121.1,0.13819997]
[1642715053926,0.00852636,3121.4,3121.1,0.13819997]
[1642715054326,3.80633788,3122.8,3121.1,0.13819997]
[1642715054327,5.793e-05,3121.3,3121.1,0.13819997]
[1642715054529,5.793e-05,3121.3,3121.2,6.1877]
[1642715054727,0.03,3122.8,3121.2,6.1877]
[1642715054728,0.03,3122.8,3122.0,1.22645973]
[1642715054729,0.00801586,3122.7,3122.0,1.22645973]
[1642715054927,0.96126,3123.5,3122.1,6.15]
[1642715054928,1.76184,3123.5,3122.1,6.15]
[1642715055131,0.1606,3123.8,3122.1,6.15341054]
[1642715055327,0.1606,3123.8,3122.9,1.14382003]
[1642715055328,0.00170527,3123.0,3122.9,1.14382003]
[1642715055531,0.00170527,3123.0,3122.2,0.00284212]